fUSD/lending_fUSD_20250206
["ID","MTS","AMOUNT","RATE_DAILY","PERIOD"]
[351943308,1738854654307,-1275.81,0.00019178,2]
[351943310,1738854654316,-1229.78,0.00019178,2]
[351943312,1738854654325,-1153.22,0.00019178,2]
[351943314,1738854654336,-501.80803662,0.00019178,2]
[351943316,1738854654345,-505.13054003,0.00019178,2]
[351943318,1738854654354,-500.0,0.00019178,2]
[351943320,1738854654364,-835.93,0.00019178,2]
[351943322,1738854654373,-652.41,0.00019178,2]
[351943324,1738854654382,-500.0,0.00019178,2]
[351943326,1738854654394,-500.0,0.00019178,2]
[351943328,1738854654405,-509.32367822,0.00019178,2]
[351943330,1738854654414,-1389.92,0.00019178,2]
[351943332,1738854654423,-808.61,0.00019178,2]
[351943334,1738854654433,-500.0,0.00019178,2]
[351943336,1738854654442,-500.0,0.00019178,2]
[351943338,1738854654451,-1360.65,0.00019178,2]
[351943340,1738854654461,-500.0,0.00019178,2]
[351943342,1738854654470,-504.53,0.00019178,2]
[351943344,1738854654480,-500.0,0.00019178,2]
[351943346,1738854654490,-557.96441779,0.00019178,2]
[351943348,1738854654500,-1558.56,0.00019178,2]
[351943350,1738854654509,-500.0,0.00019178,2]
[351943352,1738854654519,-504.63821863,0.00019178,2]
[351943354,1738854654528,-1234.97,0.00019178,2]
[351943356,1738854654538,-500.0,0.00019178,2]
[351943358,1738854654547,-500.0,0.00019178,2]
[351943360,1738854654556,-311.65293962,0.00019178,2]
[351943362,1738854654566,-509.11856352,0.00019178,2]
[351943364,1738854654575,-500.0,0.00019178,2]
[351943366,1738854654585,-1796.11,0.00019178,2]
[351943368,1738854654595,-500.0,0.00019178,2]
[351943370,1738854654604,-657.27,0.00019178,2]
[351943372,1738854654614,-601.7,0.00019178,2]
[351943374,1738854654623,-607.89,0.00019178,2]
[351943376,1738854654633,-500.0,0.00019178,2]
[351943378,1738854654642,-1217.34,0.00019178,2]
[351943380,1738854654653,-573.08,0.00019178,2]
[351943382,1738854654663,-343.94064902,0.00019178,2]
[351943384,1738854654672,-500.0,0.00019178,2]
[351943386,1738854654682,-1285.56,0.00019178,2]
[351943387,1738854654692,-652.17,0.00019178,2]
[351943388,1738854654702,-504.71704684,0.00019178,2]
[351943389,1738854654712,-500.0,0.00019178,2]
[351943390,1738854654722,-500.0,0.00019178,2]
[351943391,1738854654732,-500.0,0.00019178,2]
[351943392,1738854654742,-500.0,0.00019178,2]
[351943393,1738854654752,-1760.88,0.00019178,2]
[351943394,1738854654762,-500.0,0.00019178,2]
[351943395,1738854654772,-500.0,0.00019178,2]
[351943396,1738854654782,-1345.0,0.00019178,2]
[351943397,1738854654792,-378.89565086,0.00019178,2]
[351943398,1738854654802,-912.44,0.00019178,2]
[351943399,1738854654812,-1873.0,0.00019178,2]
[351943400,1738854654822,-500.0,0.00019178,2]
[351943401,1738854654832,-2454.77,0.00019178,2]
[351943402,1738854654841,-552.64,0.00019178,2]
[351943403,1738854654851,-565.66,0.00019178,2]
[351943404,1738854654861,-1000.0,0.00019178,2]
[351943405,1738854654870,-1000.0,0.00019178,2]
[351943406,1738854654879,-1000.0,0.00019178,2]
[351943407,1738854654889,-1000.0,0.00019178,2]
[351943408,1738854654898,-1000.0,0.00019178,2]
[351943409,1738854654911,-1000.0,0.00019178,2]
[351943410,1738854654921,-1000.0,0.00019178,2]
[351943411,1738854654931,-1000.0,0.00019178,2]
[351943412,1738854654941,-1000.0,0.00019178,2]
[351943413,1738854654952,-1000.0,0.00019178,2]
[351943414,1738854654962,-1000.0,0.00019178,2]
[351943415,1738854654973,-1000.0,0.00019178,2]
[351943416,1738854654983,-1000.0,0.00019178,2]
[351943417,1738854654993,-1000.0,0.00019178,2]
[351943418,1738854655003,-1000.0,0.00019178,2]
[351943419,1738854655012,-1000.0,0.00019178,2]
[351943420,1738854655022,-1000.0,0.00019178,2]
[351943421,1738854655031,-1000.0,0.00019178,2]
[351943422,1738854655041,-1000.0,0.00019178,2]
[351943423,1738854655052,-1000.0,0.00019178,2]
[351943424,1738854655061,-1000.0,0.00019178,2]
[351943425,1738854655070,-1000.0,0.00019178,2]
[351943426,1738854655079,-1000.0,0.00019178,2]
[351943427,1738854655089,-1000.0,0.00019178,2]
[351943428,1738854655099,-1000.0,0.00019178,2]
[351943429,1738854655110,-1000.0,0.00019178,2]
[351943430,1738854655119,-1000.0,0.00019178,2]
[351943431,1738854655129,-1000.0,0.00019178,2]
[351943432,1738854655138,-1000.0,0.00019178,2]
[351943433,1738854655147,-1000.0,0.00019178,2]
[351943434,1738854655160,-1000.0,0.00019178,2]
[351943435,1738854655170,-1000.0,0.00019178,2]
[351943436,1738854655180,-1000.0,0.00019178,2]
[351943437,1738854655190,-1000.0,0.00019178,2]
[351943438,1738854655200,-1000.0,0.00019178,2]
[351943439,1738854655210,-1000.0,0.00019178,2]
[351943440,1738854655220,-1000.0,0.00019178,2]
[351943441,1738854655229,-1000.0,0.00019178,2]
[351943442,1738854655239,-1000.0,0.00019178,2]
[351943443,1738854655249,-1000.0,0.00019178,2]
[351943444,1738854655259,-1000.0,0.00019178,2]
[351943445,1738854655268,-1000.0,0.00019178,2]
[351943446,1738854655278,-1000.0,0.00019178,2]
[351943447,1738854655288,-1000.0,0.00019178,2]
[351943448,1738854655298,-1000.0,0.00019178,2]
[351943449,1738854655308,-587.0,0.00019178,2]
[351943450,1738854655318,-150.0,0.00019178,2]
[351943451,1738854655330,-3231.09,0.00019178,2]
[351943452,1738854655341,-500.0,0.00019182,2]
[351943453,1738854655350,-1010.0,0.000192,2]
[351943454,1738854655360,-202.01298256,0.000192,3]
[351943455,1738854655369,-284.80007398,0.000192,2]
[351943456,1738854655379,-1539.74251912,0.000192,2]
[351943457,1738854655389,-1107.68,0.00019228,3]
[351943458,1738854655399,-1107.68,0.00019228,3]
[351943459,1738854655410,-1107.68,0.00019228,3]
[351943460,1738854655419,-1107.68,0.00019228,3]
[351943461,1738854655429,-1107.68,0.00019228,3]
[351943462,1738854655438,-1107.68,0.00019228,3]
[351943463,1738854655448,-1107.68,0.00019228,3]
[351943464,1738854655458,-1107.68,0.00019228,3]
[351943465,1738854655467,-1107.68,0.00019228,3]
[351943466,1738854655477,-1107.68,0.00019228,3]
[351943467,1738854655487,-289.99747907,0.00019228,3]
[351943468,1738854655510,-817.68252093,0.00019228,3]
[351943469,1738854655520,-1107.68,0.00019228,3]
[351943470,1738854655529,-32.74272274,0.00019228,3]
[351943471,1738854655541,-1074.93727726,0.00019228,3]
[351943473,1738854655550,-1028.57137009,0.00019228,3]
[351943485,1738854655676,-494.28043567,0.00019178,2]
[351943513,1738854655940,-489.77,0.00019178,2]
[351943515,1738854655951,-264.99322672,0.00019178,2]
[351943517,1738854655963,-261.22633761,0.00019178,2]
[351943519,1738854655973,-79.10862991,0.00019228,3]
[351943521,1738854655983,-1107.68,0.00019228,3]
[351943523,1738854655992,-1107.68,0.00019228,3]
[351943525,1738854656002,-1107.68,0.00019228,3]
[351943527,1738854656011,-218.60419199,0.00019228,3]
[351943531,1738854656043,-889.07580801,0.00019228,3]
[351943533,1738854656052,-1107.68,0.00019228,3]
[351943535,1738854656061,-527.76738089,0.00019228,3]
[351943694,1738854667498,500.0,0.0002,120]
[351943695,1738854667976,281.72073923,0.0002,120]
[351943698,1738855135013,1000.0,0.0002,120]
[351943699,1738855443175,57028.53,0.0002,120]
[351943732,1738855831609,-288.8193,8.699e-05,2]
[351943734,1738855831618,-2130.0372,8.699e-05,2]
[351943736,1738855831627,-4404.0292,8.836e-05,2]
[351943738,1738855831637,-1999.7734,8.836e-05,2]
[351943740,1738855831647,-196.27547794,8.836e-05,2]
[351943742,1738855831657,-235.4283,8.973e-05,2]
[351943743,1738855831666,-500.0,9.29e-05,2]
[351943744,1738855831675,-500.0,9.569e-05,2]
[351943745,1738855831684,-157.853028,9.881e-05,2]
[351943746,1738855831693,-151.392073,9.881e-05,2]
[351943747,1738855831702,-161.931452,9.881e-05,2]
[351943748,1738855831713,-169.804413,9.881e-05,2]
[351943749,1738855831723,-150.0,9.999e-05,2]
[351943750,1738855831732,-500.0,9.999e-05,2]
[351943751,1738855831742,-500.0,9.999e-05,2]
[351943752,1738855831751,-365.11,9.999e-05,2]
[351943753,1738855831760,-9078.44784306,0.0001,2]
[351943754,1738855831776,-294.29499367,0.0001,2]
[351943755,1738855831809,-385.91986734,0.0001,2]
[351943756,1738855831821,-589.2249975,0.0001,2]
[351943757,1738855831832,-729.35629871,0.0001,2]
[351943758,1738855831933,-330.5037251,0.0001,2]
[351943759,1738855831944,-49844.99999998,0.0001,2]
[351943760,1738855831974,-652.10761056,0.0001,2]
[351943761,1738855832044,-20245.99999999,0.0001,2]
[351943762,1738855832055,-33616.02514417,0.0001,2]
[351943916,1738855837451,-9306.61153299,0.0001,2]
[351943917,1738855837717,-17498.67564213,0.0001,2]
[351943918,1738855837764,-4971.340227,0.0001,2]
[351944112,1738855839620,-20648.76114883,0.0001,2]
[351944114,1738855839632,-46706.39999714,0.0001,2]
[351944116,1738855839643,-1464.99519532,0.0001,2]
[351944123,1738855839702,-584.76430095,0.0001,2]
[351944132,1738855839786,-25469.58281239,0.0001,2]
[351944153,1738855839987,-55999.999999,0.0001,2]
[351944156,1738855839999,-49001.7021276,0.0001,2]
[351944158,1738855840011,-488.03195805,0.0001,2]
[351944651,1738855845007,-12150.27028954,0.0001,2]
[351944654,1738855845019,-44300.76275339,0.0001,2]
[351944657,1738855845028,-93595.22106867,0.0001,2]
[351944660,1738855845039,-24831.06809208,0.0001,2]
[351944663,1738855845050,-25851.3051375,0.0001,2]
[351944667,1738855845061,-470.81265735,0.0001,2]
[351944684,1738855845183,-56464.0,0.0001,2]
[351944686,1738855845195,-215039.54855449,0.0001,2]
[351944688,1738855845206,-292.8706028,0.0001,2]
[351944690,1738855845217,-409.36348147,0.0001,2]
[351944751,1738855845767,-2355.69165982,0.0001,2]
[351944753,1738855845780,-564.2,0.0001,2]
[351944755,1738855845793,-271.1,0.0001,2]
[351944757,1738855845806,-343.35521287,0.0001,2]
[351944760,1738855845823,-696.054795,0.0001,2]
[351944766,1738855845893,-514.94999997,0.0001,2]
[351944768,1738855845905,-585.72499932,0.0001,2]
[351944770,1738855845918,-2804.18646404,0.0001,2]
[351944776,1738855845969,-3000.0,0.0001,2]
[351944778,1738855845981,-24733.47158735,0.0001,2]
[351944781,1738855845993,-355795.07861821,0.0001,2]
[351944788,1738855846049,-52395.21717728,0.0001,2]
[351944790,1738855846059,-183.35,0.00010137,2]
[351944792,1738855846068,-500.0,0.00010138,2]
[351944794,1738855846078,-151.392073,0.00010292,2]
[351944796,1738855846087,-157.853028,0.00010429,2]
[351944798,1738855846097,-151.392073,0.0001084,2]
[351944800,1738855846107,-157.853028,0.00010977,2]
[351944802,1738855846121,-151.392073,0.00011251,2]
[351944803,1738855846131,-954.36187022,0.00011762,2]
[351944805,1738855846140,-550.0,0.00013,2]
[351944807,1738855846149,-961.25,0.00014683,2]
[351944809,1738855846159,-412.34,0.00015396,2]
[351944811,1738855846168,-250.0,0.00015553,2]
[351944812,1738855846177,-1000.0,0.00015675,2]
[351944813,1738855846186,-21129.88,0.00015875,2]
[351944814,1738855846195,-3701.7186775,0.0001618,2]
[351944848,1738857032419,-308.67803514,8.699e-05,2]
[351944849,1738857032431,-423.39186486,8.699e-05,2]
[351944850,1738857032441,-827.57538219,8.699e-05,2]
[351944851,1738857032453,-150.51631781,8.699e-05,2]
[351944852,1738857032463,-141.27030581,8.836e-05,2]
[351944853,1738857032556,-358.72969419,8.836e-05,2]
[351944854,1738857032565,-2462.08311081,8.836e-05,2]
[351944855,1738857032576,-2188.81507441,8.836e-05,2]
[351944856,1738857032587,-1137.06281478,8.836e-05,2]
[351944857,1738857032596,-3874.0724,8.973e-05,2]
[351944858,1738857032606,-500.0,9.569e-05,2]
[351944859,1738857032615,-150.0,9.863e-05,2]
[351944860,1738857032625,-151.407816,9.881e-05,2]
[351944861,1738857032635,-163.743721,9.881e-05,2]
[351944862,1738857032648,-155.292379,9.881e-05,2]
[351944863,1738857032657,-151.407815,9.881e-05,2]
[351944864,1738857032667,-163.743721,9.881e-05,2]
[351944865,1738857032676,-163.743721,9.881e-05,2]
[351944866,1738857032686,-151.407816,9.881e-05,2]
[351944868,1738857032696,-913.18,0.00014545,2]
[351944870,1738857032705,-3394.0,0.000157,2]
[351944872,1738857032715,-150.0,0.00015887,2]
[351944874,1738857032724,-430.404555,0.00015906,2]
[351944876,1738857032734,-150.0,0.00015956,2]
[351944878,1738857032744,-150.0,0.00016,2]
[351944880,1738857032754,-150.0,0.00016089,2]
[351944882,1738857032763,-150.0,0.00016159,2]
[351944884,1738857032773,-150.0,0.0001617,2]
[351944886,1738857032783,-422.0,0.00016179,2]
[351944889,1738857032796,-378.58,0.0001618,2]
[351944891,1738857032806,-381.45,0.0001618,2]
[351944893,1738857032815,-379.75,0.0001618,2]
[351944895,1738857032826,-368.6,0.0001618,2]
[351944897,1738857032836,-368.7,0.0001618,2]
[351944898,1738857032846,-86624.55726422,0.0001618,2]
[351944901,1738857032855,-1123.69752,0.0001618,2]
[351944902,1738857032867,-168.37,0.00016415,2]
[351944905,1738857032876,-250.0,0.0001642,2]
[351944906,1738857032885,-150.0,0.00016421,2]
[351944909,1738857032900,-561.56,0.00016425,2]
[351944911,1738857032910,-150.0,0.00016436,2]
[351944913,1738857032919,-200.0,0.00016439,2]
[351944915,1738857032929,-283.13,0.00016508,2]
[351944917,1738857032938,-152.39,0.00016526,2]
[351944919,1738857032949,-238.68408743,0.00016556,2]
[351944921,1738857032960,-150.0,0.0001663,2]
[351944923,1738857032970,-416.83,0.00016658,30]
[351944925,1738857032979,-201.0,0.0001668,2]
[351944927,1738857032988,-775.156,0.00016775,2]
[351944929,1738857032998,-913.18,0.00016808,2]
[351944931,1738857033007,-183.35,0.00016813,2]
[351944933,1738857033017,-984.31,0.00016868,2]
[351944935,1738857033026,-150.0,0.0001687,2]
[351944937,1738857033035,-1000.0,0.00016876,2]
[351944939,1738857033046,-411.13,0.00016881,2]
[351944941,1738857033056,-201.0,0.0001698,2]
[351944943,1738857033065,-583.86,0.00017043,2]
[351944944,1738857033075,-189.5,0.000171,2]
[351944946,1738857033084,-150.0,0.00017128,2]
[351944948,1738857033094,-150.0,0.00017231,2]
[351944950,1738857033103,-201.0,0.0001729,2]
[351944952,1738857033113,-878.38,0.00017342,2]
[351944954,1738857033123,-150.0,0.00017395,2]
[351944956,1738857033132,-500.0,0.00017397,2]
[351944958,1738857033142,-150.0,0.00017454,2]
[351944960,1738857033156,-150.0,0.00017496,2]
[351944962,1738857033166,-150.0,0.00017547,2]
[351944964,1738857033175,-150.0,0.00017579,2]
[351944966,1738857033184,-150.0,0.00017583,2]
[351944968,1738857033194,-201.0,0.0001759,2]
[351944970,1738857033203,-205.0,0.0001759,2]
[351944972,1738857033213,-1000.0,0.000176,2]
[351944974,1738857033222,-150.0,0.0001764,2]
[351944976,1738857033232,-150.0,0.00017687,2]
[351944978,1738857033242,-150.0,0.000177,2]
[351944980,1738857033251,-150.0,0.00017756,2]
[351944982,1738857033261,-150.0,0.0001777,2]
[351944984,1738857033271,-150.0,0.00017896,2]
[351944986,1738857033280,-201.0,0.000179,2]
[351944988,1738857033289,-205.0,0.000179,2]
[351944990,1738857033299,-1890.0,0.000179,2]
[351944992,1738857033308,-1010.0,0.000179,2]
[351944994,1738857033318,-360.68604273,0.0001792,2]
[351944996,1738857033327,-150.0,0.00017941,2]
[351944998,1738857033336,-150.0,0.0001799,2]
[351945000,1738857033347,-150.0,0.00017993,2]
[351945002,1738857033356,-1000.0,0.00018,2]
[351945004,1738857033366,-150.0,0.00018018,2]
[351945006,1738857033375,-151.81,0.00018027,2]
[351945008,1738857033385,-1272.0,0.00018027,2]
[351945010,1738857033398,-2023.0,0.00018027,2]
[351945012,1738857033409,-150.0,0.00018027,2]
[351945014,1738857033419,-638.0,0.00018027,2]
[351945016,1738857033429,-568.0,0.00018027,2]
[351945018,1738857033439,-1826.0,0.00018027,2]
[351945020,1738857033448,-1264.0,0.00018027,2]
[351945022,1738857033458,-2953.0,0.00018027,2]
[351945024,1738857033468,-907.0,0.00018027,2]
[351945026,1738857033477,-783.0,0.00018027,2]
[351945028,1738857033487,-539.0,0.00018027,2]
[351945030,1738857033496,-4023.0,0.00018027,2]
[351945032,1738857033506,-1007.0,0.00018027,2]
[351945034,1738857033516,-3911.0,0.00018027,2]
[351945036,1738857033526,-150.0,0.00018027,2]
[351945038,1738857033536,-1108.0,0.00018027,2]
[351945040,1738857033545,-150.0,0.00018044,2]
[351945042,1738857033555,-179.89,0.00018082,2]
[351945044,1738857033565,-150.0,0.00018142,2]
[351945046,1738857033575,-150.0,0.0001819,2]
[351945048,1738857033586,-150.0,0.00018202,2]
[351945050,1738857033595,-201.0,0.0001821,2]
[351945052,1738857033605,-205.0,0.0001821,2]
[351945053,1738857033615,-150.0,0.00018264,2]
[351945055,1738857033626,-150.0,0.00018264,2]
[351945057,1738857033636,-3200.0,0.000183,6]
[351945059,1738857033646,-150.0,0.00018304,2]
[351945061,1738857033655,-150.0,0.00018307,2]
[351945062,1738857033665,-150.0,0.00018397,2]
[351945063,1738857033675,-6500.0,0.000184,6]
[351945064,1738857033684,-150.0,0.00018495,2]
[351945065,1738857033694,-9800.0,0.000185,6]
[351945066,1738857033703,-201.0,0.0001851,2]
[351945067,1738857033713,-204.0,0.0001851,2]
[351945068,1738857033722,-208.0,0.0001851,2]
[351945069,1738857033731,-205.0,0.0001851,2]
[351945070,1738857033740,-150.0,0.00018531,2]
[351945071,1738857033750,-150.0,0.0001856,2]
[351945072,1738857033760,-150.0,0.00018563,2]
[351945073,1738857033769,-1000.0,0.00018576,2]
[351945074,1738857033782,-152.39,0.00018592,2]
[351945075,1738857033791,-13100.0,0.000186,6]
[351945076,1738857033800,-150.0,0.00018609,2]
[351945077,1738857033810,-150.0,0.00018644,2]
[351945078,1738857033820,-150.0,0.00018691,2]
[351945079,1738857033830,-16400.0,0.000187,6]
[351945080,1738857033839,-150.0,0.00018709,2]
[351945081,1738857033849,-179.89,0.00018751,2]
[351945082,1738857033860,-3200.0,0.000188,6]
[351945083,1738857033870,-150.0,0.00018802,2]
[351945084,1738857033880,-150.0,0.00018802,2]
[351945085,1738857033890,-150.0,0.00018802,2]
[351945086,1738857033901,-150.0,0.00018805,2]
[351945087,1738857033911,-201.0,0.0001882,2]
[351945088,1738857033921,-204.0,0.0001882,2]
[351945089,1738857033931,-208.0,0.0001882,2]
[351945090,1738857033940,-205.0,0.0001882,2]
[351945091,1738857033951,-150.0,0.00018847,2]
[351945092,1738857033960,-3200.0,0.000189,6]
[351945093,1738857033971,-2276.0714986,0.00018913,2]
[351945094,1738857033981,-150.0,0.00018943,2]
[351945095,1738857033991,-1000.0,0.00018947,2]
[351945096,1738857034001,-150.0,0.00018971,2]
[351945097,1738857034011,-150.0,0.00018974,2]
[351945098,1738857034021,-1000.0,0.00018986,2]
[351945099,1738857034031,-150.0,0.00019014,2]
[351945100,1738857034041,-150.0,0.00019022,2]
[351945101,1738857034050,-150.0,0.00019025,2]
[351945102,1738857034060,-150.0,0.00019026,2]
[351945103,1738857034069,-232.65332889,0.0001903,2]
[351945104,1738857034079,-150.0,0.00019033,2]
[351945105,1738857034088,-150.0,0.00019037,2]
[351945106,1738857034098,-1000.0,0.00019064,2]
[351945107,1738857034107,-150.0,0.00019072,2]
[351945108,1738857034116,-913.18,0.00019072,2]
[351945109,1738857034126,-500.0,0.00019083,2]
[351945110,1738857034135,-201.0,0.0001912,2]
[351945111,1738857034146,-204.0,0.0001912,2]
[351945112,1738857034155,-208.0,0.0001912,2]
[351945113,1738857034165,-205.0,0.0001912,2]
[351945114,1738857034174,-150.0,0.00019126,2]
[351945115,1738857034184,-500.0,0.00019146,2]
[351945116,1738857034193,-150.0,0.00019146,2]
[351945117,1738857034203,-680.90552192,0.00019158,2]
[351945118,1738857034213,-150.0,0.00019167,2]
[351945119,1738857034222,-2123.0,0.00019172,2]
[351945120,1738857034231,-500.0,0.00019173,2]
[351945121,1738857034241,-98568.63322343,0.00019177,2]
[351945122,1738857034250,-157.853028,0.00019178,2]
[351945123,1738857034260,-500.0,0.00019178,2]
[351945124,1738857034270,-500.0,0.00019178,2]
[351945125,1738857034279,-378.89565086,0.00019178,2]
[351945126,1738857034289,-620.35519919,0.00019178,2]
[351945127,1738857034299,-500.0,0.00019178,2]
[351945128,1738857034308,-500.0,0.00019178,2]
[351945129,1738857034318,-500.0,0.00019178,2]
[351945130,1738857034328,-248.71531408,0.00019178,2]
[351945131,1738857034337,-500.0,0.00019178,2]
[351945132,1738857034346,-500.0,0.00019178,2]
[351945133,1738857034356,-500.0,0.00019178,2]
[351945134,1738857034365,-500.0,0.00019178,2]
[351945135,1738857034374,-500.0,0.00019178,2]
[351945136,1738857034383,-500.0,0.00019178,2]
[351945137,1738857034393,-500.0,0.00019178,2]
[351945138,1738857034405,-500.0,0.00019178,2]
[351945139,1738857034414,-500.0,0.00019178,2]
[351945140,1738857034424,-500.0,0.00019178,2]
[351945141,1738857034433,-500.0,0.00019178,2]
[351945142,1738857034442,-500.0,0.00019178,2]
[351945143,1738857034453,-500.0,0.00019178,2]
[351945144,1738857034462,-500.0,0.00019178,2]
[351945145,1738857034472,-500.0,0.00019178,2]
[351945146,1738857034482,-500.0,0.00019178,2]
[351945147,1738857034491,-500.0,0.00019178,2]
[351945148,1738857034501,-500.0,0.00019178,2]
[351945149,1738857034511,-500.0,0.00019178,2]
[351945150,1738857034521,-500.0,0.00019178,2]
[351945151,1738857034531,-500.0,0.00019178,2]
[351945152,1738857034541,-500.0,0.00019178,2]
[351945153,1738857034551,-500.0,0.00019178,2]
[351945154,1738857034560,-500.0,0.00019178,2]
[351945155,1738857034570,-500.0,0.00019178,2]
[351945156,1738857034580,-500.0,0.00019178,2]
[351945157,1738857034589,-500.0,0.00019178,2]
[351945158,1738857034829,-500.0,0.00019178,2]
[351945159,1738857034838,-500.0,0.00019178,2]
[351945160,1738857034847,-500.0,0.00019178,2]
[351945161,1738857034856,-500.0,0.00019178,2]
[351945162,1738857034866,-500.0,0.00019178,2]
[351945163,1738857034876,-500.0,0.00019178,2]
[351945164,1738857034885,-500.0,0.00019178,2]
[351945165,1738857034895,-500.0,0.00019178,2]
[351945166,1738857034910,-500.0,0.00019178,2]
[351945167,1738857034919,-500.0,0.00019178,2]
[351945168,1738857034928,-500.0,0.00019178,2]
[351945169,1738857034937,-500.0,0.00019178,2]
[351945170,1738857034947,-500.0,0.00019178,2]
[351945171,1738857034956,-500.0,0.00019178,2]
[351945172,1738857034965,-500.0,0.00019178,2]
[351945173,1738857034975,-500.0,0.00019178,2]
[351945174,1738857034985,-500.0,0.00019178,2]
[351945175,1738857034995,-500.0,0.00019178,2]
[351945176,1738857035005,-500.0,0.00019178,2]
[351945177,1738857035014,-500.0,0.00019178,2]
[351945178,1738857035024,-500.0,0.00019178,2]
[351945179,1738857035033,-225.4640739,0.00019178,2]
[351945180,1738857035041,-500.0,0.00019178,2]
[351945181,1738857035051,-503.14907345,0.00019178,2]
[351945182,1738857035061,-500.0,0.00019178,2]
[351945183,1738857035070,-615.90737694,0.00019178,2]
[351945184,1738857035080,-500.0,0.00019178,2]
[351945185,1738857035089,-500.0,0.00019178,2]
[351945186,1738857035099,-500.0,0.00019178,2]
[351945187,1738857035109,-500.0,0.00019178,2]
[351945188,1738857035118,-500.0,0.00019178,2]
[351945189,1738857035127,-500.0,0.00019178,2]
[351945190,1738857035137,-500.0,0.00019178,2]
[351945191,1738857035148,-505.99,0.00019178,2]
[351945192,1738857035158,-500.0,0.00019178,2]
[351945193,1738857035167,-500.0,0.00019178,2]
[351945194,1738857035177,-514.55,0.00019178,2]
[351945195,1738857035186,-500.0,0.00019178,2]
[351945196,1738857035196,-500.0,0.00019178,2]
[351945197,1738857035205,-500.0,0.00019178,2]
[351945198,1738857035214,-500.0,0.00019178,2]
[351945199,1738857035225,-500.0,0.00019178,2]
[351945200,1738857035234,-503.13034414,0.00019178,2]
[351945201,1738857035244,-500.0,0.00019178,2]
[351945202,1738857035254,-500.0,0.00019178,2]
[351945203,1738857035265,-500.0,0.00019178,2]
[351945204,1738857035275,-500.0,0.00019178,2]
[351945205,1738857035285,-500.0,0.00019178,2]
[351945206,1738857035294,-500.0,0.00019178,2]
[351945207,1738857035303,-500.0,0.00019178,2]
[351945208,1738857035312,-500.0,0.00019178,2]
[351945209,1738857035322,-500.0,0.00019178,2]
[351945210,1738857035330,-1200.0,0.00019178,5]
[351945211,1738857035339,-500.0,0.00019178,2]
[351945212,1738857035349,-500.0,0.00019178,2]
[351945213,1738857035358,-500.0,0.00019178,2]
[351945214,1738857035367,-500.0,0.00019178,2]
[351945215,1738857035377,-500.0,0.00019178,2]
[351945216,1738857035386,-500.0,0.00019178,2]
[351945217,1738857035399,-511.93,0.00019178,2]
[351945218,1738857035408,-556.70519754,0.00019178,2]
[351945219,1738857035417,-500.0,0.00019178,2]
[351945220,1738857035427,-500.0,0.00019178,2]
[351945221,1738857035436,-500.0,0.00019178,2]
[351945222,1738857035446,-500.0,0.00019178,2]
[351945223,1738857035455,-982.54,0.00019178,2]
[351945224,1738857035465,-500.0,0.00019178,2]
[351945225,1738857035474,-500.0,0.00019178,2]
[351945226,1738857035483,-500.0,0.00019178,2]
[351945227,1738857035492,-500.0,0.00019178,2]
[351945228,1738857035501,-500.0,0.00019178,2]